[Event "Titled Tuesday Blitz October 25 Late 2022"]
[White "Mirimanian, Hayk"]
[Black "Thiel, Thomas"]
[WhiteFideId "4700180"]
[BlackFideId "4615964"]
[WhiteElo "2280"]
[BlackElo "2236"]
[Result "1-0"]
[Round "04"]
[TimeControl "180+1"]
[Date "2022.10.26"]
[WhiteClock "0:01:33"]
[BlackClock "0:02:18"]

1. d4 {[%clk 0:03:00]}  Nf6 {[%clk 0:02:58]} 2. Nf3 {[%clk 0:03:01]}  g6 {[%clk 0:02:57]} 3. g3 {[%clk 0:03:01]}  Bg7 {[%clk 0:02:53]} 4. c4 {[%clk 0:03:01]}  c6 {[%clk 0:02:50]} 5. Bg2 {[%clk 0:03:01]}  O-O {[%clk 0:02:48]} 6. O-O {[%clk 0:03:00]}  d5 {[%clk 0:02:49]} 7. Nbd2 {[%clk 0:03:00]}  Bf5 {[%clk 0:02:39]} 8. b3 {[%clk 0:02:42]}  Ne4 {[%clk 0:02:38]} 9. Bb2 {[%clk 0:02:41]}  dxc4 {[%clk 0:02:32]} 10. bxc4 {[%clk 0:02:37]}  c5 {[%clk 0:02:24]} 11. Nh4 {[%clk 0:01:42]}  Nxd2 {[%clk 0:02:22]} 12. Qxd2 {[%clk 0:01:38]}  Nc6 {[%clk 0:02:21]} 13. Nxf5 {[%clk 0:01:38]}  gxf5 {[%clk 0:02:20]} 14. d5 {[%clk 0:01:34]}  Nd4 {[%clk 0:02:18]} 15. e3 {[%clk 0:01:33]} 1-0


[Site "https://www.chess.com"]

[Event "Titled Tuesday Blitz October 25 Late 2022"]
[White "Moaataz, Ayah"]
[Black "Harish, Neeraj"]
[WhiteFideId "10615873"]
[BlackFideId "30958130"]
[WhiteElo "1993"]
[BlackElo "1815"]
[Result "1-0"]
[Round "04"]
[TimeControl "180+1"]
[Date "2022.10.26"]
[WhiteClock "0:02:05"]
[BlackClock "0:01:32"]

1. c4 {[%clk 0:03:00]}  e6 {[%clk 0:02:55]} 2. g3 {[%clk 0:03:01]}  d5 {[%clk 0:02:55]} 3. Bg2 {[%clk 0:03:02]}  Nf6 {[%clk 0:02:55]} 4. Nf3 {[%clk 0:02:59]}  Be7 {[%clk 0:02:55]} 5. O-O {[%clk 0:03:00]}  O-O {[%clk 0:02:55]} 6. d4 {[%clk 0:03:00]}  dxc4 {[%clk 0:02:55]} 7. Ne5 {[%clk 0:03:01]}  Nc6 {[%clk 0:02:54]} 8. Bxc6 {[%clk 0:03:00]}  bxc6 {[%clk 0:02:55]} 9. Nxc6 {[%clk 0:03:01]}  Qe8 {[%clk 0:02:55]} 10. Nxe7+ {[%clk 0:03:01]}  Qxe7 {[%clk 0:02:56]} 11. b3 {[%clk 0:03:02]}  cxb3 {[%clk 0:02:51]} 12. axb3 {[%clk 0:03:02]}  Rd8 {[%clk 0:02:46]} 13. e3 {[%clk 0:03:01]}  e5 {[%clk 0:02:46]} 14. Ba3 {[%clk 0:02:55]}  Qe8 {[%clk 0:02:41]} 15. Bc5 {[%clk 0:02:50]}  Bh3 {[%clk 0:02:40]} 16. Re1 {[%clk 0:02:49]}  Qc6 {[%clk 0:02:28]} 17. f3 {[%clk 0:02:44]}  a6 {[%clk 0:02:05]} 18. Nd2 {[%clk 0:02:24]}  exd4 {[%clk 0:01:55]} 19. exd4 {[%clk 0:02:22]}  Nd5 {[%clk 0:01:39]} 20. Ne4 {[%clk 0:02:21]}  Be6 {[%clk 0:01:35]} 21. Qc2 {[%clk 0:02:13]}  Rab8 {[%clk 0:01:33]} 22. Ng5 {[%clk 0:02:07]}  Nb4 {[%clk 0:01:32]} 23. Qxh7# {[%clk 0:02:05]} 1-0


[Site "https://www.chess.com"]

[Event "Titled Tuesday Blitz October 25 Late 2022"]
[White "Naroditsky, Daniel"]
[Black "Predke, Alexandr"]
[WhiteFideId "2026961"]
[BlackFideId "24107581"]
[WhiteElo "3165"]
[BlackElo "2851"]
[Result "1-0"]
[Round "04"]
[TimeControl "180+1"]
[Date "2022.10.26"]
[WhiteClock "0:00:03"]
[BlackClock "0:00:02"]

1. e4 {[%clk 0:03:00]}  e5 {[%clk 0:02:59]} 2. Nf3 {[%clk 0:03:01]}  Nc6 {[%clk 0:03:00]} 3. Bb5 {[%clk 0:03:01]}  a6 {[%clk 0:02:58]} 4. Ba4 {[%clk 0:03:02]}  Nge7 {[%clk 0:02:54]} 5. Nc3 {[%clk 0:02:57]}  g6 {[%clk 0:02:45]} 6. d4 {[%clk 0:02:55]}  exd4 {[%clk 0:02:45]} 7. Nd5 {[%clk 0:02:56]}  Bg7 {[%clk 0:02:42]} 8. Bg5 {[%clk 0:02:55]}  b5 {[%clk 0:02:38]} 9. Nxd4 {[%clk 0:02:30]}  bxa4 {[%clk 0:02:26]} 10. Nxc6 {[%clk 0:02:09]}  dxc6 {[%clk 0:02:27]} 11. Bxe7 {[%clk 0:02:05]}  Qd7 {[%clk 0:02:19]} 12. Nf6+ {[%clk 0:01:55]}  Bxf6 {[%clk 0:02:19]} 13. Bxf6 {[%clk 0:01:56]}  Qxd1+ {[%clk 0:02:11]} 14. Rxd1 {[%clk 0:01:57]}  O-O {[%clk 0:02:11]} 15. f3 {[%clk 0:01:44]}  Be6 {[%clk 0:02:07]} 16. a3 {[%clk 0:01:43]}  h5 {[%clk 0:01:59]} 17. Kf2 {[%clk 0:01:38]}  Rfb8 {[%clk 0:01:56]} 18. h4 {[%clk 0:01:35]}  c5 {[%clk 0:01:47]} 19. Rd2 {[%clk 0:01:28]}  Rb6 {[%clk 0:01:26]} 20. Rhd1 {[%clk 0:01:25]}  Kh7 {[%clk 0:01:26]} 21. Be5 {[%clk 0:01:13]}  Rc8 {[%clk 0:01:15]} 22. Ke3 {[%clk 0:01:07]}  Rbb8 {[%clk 0:01:02]} 23. Bf6 {[%clk 0:01:03]}  Rb6 {[%clk 0:01:01]} 24. Kf4 {[%clk 0:00:59]}  Rbb8 {[%clk 0:00:56]} 25. g4 {[%clk 0:00:53]}  hxg4 {[%clk 0:00:53]} 26. fxg4 {[%clk 0:00:54]}  c4 {[%clk 0:00:54]} 27. Rh2 {[%clk 0:00:33]}  Rb5 {[%clk 0:00:53]} 28. e5 {[%clk 0:00:31]}  Rxb2 {[%clk 0:00:47]} 29. Kg5 {[%clk 0:00:27]}  Rg8 {[%clk 0:00:44]} 30. Rhd2 {[%clk 0:00:12]}  Rbb8 {[%clk 0:00:25]} 31. Rd4 {[%clk 0:00:12]}  Ra8 {[%clk 0:00:17]} 32. R1d2 {[%clk 0:00:11]}  Rab8 {[%clk 0:00:18]} 33. Rh2 {[%clk 0:00:12]}  Rb1 {[%clk 0:00:17]} 34. Rhd2 {[%clk 0:00:09]}  Rg1 {[%clk 0:00:17]} 35. Rf2 {[%clk 0:00:04]}  Rb8 {[%clk 0:00:16]} 36. Rff4 {[%clk 0:00:03]}  Rg2 {[%clk 0:00:12]} 37. Rxc4 {[%clk 0:00:02]}  Bxc4 {[%clk 0:00:07]} 38. Rxc4 {[%clk 0:00:02]}  Rb7 {[%clk 0:00:06]} 39. Rd4 {[%clk 0:00:02]}  Rb8 {[%clk 0:00:06]} 40. Rd7 {[%clk 0:00:03]}  Kg8 {[%clk 0:00:06]} 41. Rxc7 {[%clk 0:00:03]}  Rg3 {[%clk 0:00:05]} 42. e6 {[%clk 0:00:03]}  fxe6 {[%clk 0:00:04]} 43. Be5 {[%clk 0:00:03]}  Rg2 {[%clk 0:00:03]} 44. Rg7+ {[%clk 0:00:03]}  Kf8 {[%clk 0:00:04]} 45. Rh7 {[%clk 0:00:02]}  Rb5 {[%clk 0:00:04]} 46. Kf6 {[%clk 0:00:02]}  Rf2+ {[%clk 0:00:04]} 47. Kxe6 {[%clk 0:00:03]}  Rxe5+ {[%clk 0:00:04]} 48. Kxe5 {[%clk 0:00:04]}  Kg8 {[%clk 0:00:04]} 49. Ra7 {[%clk 0:00:03]}  Rxc2 {[%clk 0:00:04]} 50. Rxa6 {[%clk 0:00:04]}  Kg7 {[%clk 0:00:02]} 51. Ra7+ {[%clk 0:00:03]}  Kg8 {[%clk 0:00:02]} 52. Rxa4 {[%clk 0:00:04]}  Kg7 {[%clk 0:00:02]} 53. Ra7+ {[%clk 0:00:04]}  Kg8 {[%clk 0:00:02]} 54. Kf6 {[%clk 0:00:04]}  Rc6+ {[%clk 0:00:01]} 55. Kg5 {[%clk 0:00:05]}  Kh8 {[%clk 0:00:01]} 56. a4 {[%clk 0:00:05]}  Kg8 {[%clk 0:00:02]} 57. a5 {[%clk 0:00:06]}  Kh8 {[%clk 0:00:03]} 58. a6 {[%clk 0:00:06]}  Kg8 {[%clk 0:00:03]} 59. Kf4 {[%clk 0:00:04]}  Kh8 {[%clk 0:00:03]} 60. Ke5 {[%clk 0:00:05]}  Kg8 {[%clk 0:00:01]} 61. g5 {[%clk 0:00:04]}  Rb6 {[%clk 0:00:02]} 62. Kd5 {[%clk 0:00:03]}  Rb5+ {[%clk 0:00:02]} 63. Kc6 {[%clk 0:00:03]}  Rb4 {[%clk 0:00:02]} 64. Rb7 {[%clk 0:00:03]} 1-0


[Site "https://www.chess.com"]

[Event "Titled Tuesday Blitz October 25 Late 2022"]
[White "Ozdemir, Serhan Berat"]
[Black "Kirillov, Dmitry"]
[WhiteFideId "6374611"]
[BlackFideId "34180572"]
[WhiteElo "2016"]
[BlackElo "2095"]
[Result "1-0"]
[Round "04"]
[TimeControl "180+1"]
[Date "2022.10.26"]
[WhiteClock "0:00:03"]
[BlackClock "0:00:02"]

1. e4 {[%clk 0:03:00]}  c6 {[%clk 0:03:00]} 2. d4 {[%clk 0:03:01]}  d5 {[%clk 0:03:00]} 3. exd5 {[%clk 0:03:01]}  cxd5 {[%clk 0:03:01]} 4. c4 {[%clk 0:03:02]}  Nc6 {[%clk 0:03:02]} 5. Nc3 {[%clk 0:03:03]}  Nf6 {[%clk 0:03:02]} 6. Bg5 {[%clk 0:03:03]}  e6 {[%clk 0:02:55]} 7. Nf3 {[%clk 0:03:01]}  Be7 {[%clk 0:02:54]} 8. Bd3 {[%clk 0:03:00]}  O-O {[%clk 0:02:51]} 9. O-O {[%clk 0:03:00]}  h6 {[%clk 0:02:49]} 10. Be3 {[%clk 0:02:42]}  dxc4 {[%clk 0:02:29]} 11. Bxc4 {[%clk 0:02:43]}  a6 {[%clk 0:02:26]} 12. Qe2 {[%clk 0:02:10]}  b5 {[%clk 0:02:24]} 13. Bb3 {[%clk 0:02:11]}  Bb7 {[%clk 0:02:19]} 14. Rfd1 {[%clk 0:02:11]}  Na5 {[%clk 0:02:14]} 15. Bc2 {[%clk 0:02:11]}  Rc8 {[%clk 0:02:05]} 16. Rac1 {[%clk 0:01:39]}  Nc4 {[%clk 0:01:43]} 17. Bb1 {[%clk 0:01:25]}  Re8 {[%clk 0:00:57]} 18. Ne5 {[%clk 0:01:17]}  Nxe3 {[%clk 0:00:50]} 19. Qxe3 {[%clk 0:01:17]}  Qb6 {[%clk 0:00:47]} 20. Ne2 {[%clk 0:01:10]}  Red8 {[%clk 0:00:40]} 21. Rxc8 {[%clk 0:01:00]}  Rxc8 {[%clk 0:00:38]} 22. Nf4 {[%clk 0:00:59]}  Rd8 {[%clk 0:00:30]} 23. h3 {[%clk 0:00:49]}  Bc5 {[%clk 0:00:29]} 24. Ne2 {[%clk 0:00:46]}  Bd6 {[%clk 0:00:28]} 25. Rc1 {[%clk 0:00:25]}  Rc8 {[%clk 0:00:17]} 26. Re1 {[%clk 0:00:20]}  Bb4 {[%clk 0:00:14]} 27. Rd1 {[%clk 0:00:19]}  Rd8 {[%clk 0:00:13]} 28. a3 {[%clk 0:00:10]}  Be7 {[%clk 0:00:13]} 29. Ba2 {[%clk 0:00:09]}  Ba8 {[%clk 0:00:13]} 30. Nf4 {[%clk 0:00:08]}  b4 {[%clk 0:00:11]} 31. Ng4 {[%clk 0:00:03]}  Nxg4 {[%clk 0:00:10]} 32. hxg4 {[%clk 0:00:04]}  Qc6 {[%clk 0:00:10]} 33. d5 {[%clk 0:00:03]}  Qd6 {[%clk 0:00:05]} 34. g3 {[%clk 0:00:01]}  bxa3 {[%clk 0:00:06]} 35. bxa3 {[%clk 0:00:01]}  Qxa3 {[%clk 0:00:07]} 36. Qxa3 {[%clk 0:00:01]}  Bxa3 {[%clk 0:00:07]} 37. Rd3 {[%clk 0:00:02]}  e5 {[%clk 0:00:04]} 38. Rxa3 {[%clk 0:00:01]}  exf4 {[%clk 0:00:04]} 39. gxf4 {[%clk 0:00:02]}  Rd6 {[%clk 0:00:04]} 40. Rd3 {[%clk 0:00:02]}  Kf8 {[%clk 0:00:04]} 41. f3 {[%clk 0:00:03]}  Ke7 {[%clk 0:00:05]} 42. Kf2 {[%clk 0:00:04]}  f6 {[%clk 0:00:05]} 43. Ke3 {[%clk 0:00:04]}  a5 {[%clk 0:00:05]} 44. Kd4 {[%clk 0:00:05]}  Rb6 {[%clk 0:00:06]} 45. Kc5 {[%clk 0:00:05]}  Rb2 {[%clk 0:00:05]} 46. Bc4 {[%clk 0:00:06]}  Kd7 {[%clk 0:00:05]} 47. Re3 {[%clk 0:00:06]}  Rc2 {[%clk 0:00:04]} 48. Re6 {[%clk 0:00:04]}  a4 {[%clk 0:00:03]} 49. Ra6 {[%clk 0:00:04]}  Rc3 {[%clk 0:00:03]} 50. Rxa4 {[%clk 0:00:04]}  Bb7 {[%clk 0:00:03]} 51. Ra7 {[%clk 0:00:05]}  Kc8 {[%clk 0:00:03]} 52. d6 {[%clk 0:00:05]}  Rxf3 {[%clk 0:00:03]} 53. Rxb7 {[%clk 0:00:03]}  Kxb7 {[%clk 0:00:03]} 54. Bd5+ {[%clk 0:00:03]}  Kc8 {[%clk 0:00:03]} 55. Bxf3 {[%clk 0:00:04]}  Kd7 {[%clk 0:00:03]} 56. f5 {[%clk 0:00:05]}  g5 {[%clk 0:00:02]} 57. fxg6 {[%clk 0:00:03]} 1-0


[Site "https://www.chess.com"]

[Event "Titled Tuesday Blitz October 25 Late 2022"]
[White "Papasimakopoulos, Alexandros"]
[Black "Gogolev, Artem"]
[WhiteFideId "4244125"]
[BlackFideId "4116615"]
[WhiteElo "2357"]
[BlackElo "2178"]
[Result "1-0"]
[Round "04"]
[TimeControl "180+1"]
[Date "2022.10.26"]
[WhiteClock "0:01:55"]
[BlackClock "0:00:43"]

1. d4 {[%clk 0:03:00]}  Nf6 {[%clk 0:02:58]} 2. c4 {[%clk 0:03:01]}  e6 {[%clk 0:02:56]} 3. Nc3 {[%clk 0:03:02]}  Bb4 {[%clk 0:02:56]} 4. Qc2 {[%clk 0:03:02]}  d5 {[%clk 0:02:53]} 5. cxd5 {[%clk 0:03:02]}  Qxd5 {[%clk 0:02:47]} 6. Nf3 {[%clk 0:03:02]}  O-O {[%clk 0:02:40]} 7. a3 {[%clk 0:02:59]}  Bxc3+ {[%clk 0:02:35]} 8. bxc3 {[%clk 0:03:00]}  c5 {[%clk 0:02:32]} 9. c4 {[%clk 0:02:58]}  Qe4 {[%clk 0:02:18]} 10. Qxe4 {[%clk 0:02:53]}  Nxe4 {[%clk 0:02:19]} 11. e3 {[%clk 0:02:53]}  b6 {[%clk 0:02:18]} 12. Bd3 {[%clk 0:02:52]}  Bb7 {[%clk 0:02:18]} 13. Bb2 {[%clk 0:02:52]}  Nd7 {[%clk 0:02:13]} 14. Ke2 {[%clk 0:02:52]}  Rfd8 {[%clk 0:02:12]} 15. Rhd1 {[%clk 0:02:51]}  Rac8 {[%clk 0:02:10]} 16. a4 {[%clk 0:02:50]}  a5 {[%clk 0:01:51]} 17. Nd2 {[%clk 0:02:38]}  Nxd2 {[%clk 0:01:50]} 18. Rxd2 {[%clk 0:02:39]}  f6 {[%clk 0:01:41]} 19. g3 {[%clk 0:02:36]}  Kf7 {[%clk 0:01:39]} 20. Rb1 {[%clk 0:02:35]}  cxd4 {[%clk 0:01:36]} 21. exd4 {[%clk 0:02:32]}  Ba6 {[%clk 0:01:24]} 22. Rc2 {[%clk 0:02:29]}  Rc7 {[%clk 0:01:23]} 23. Rbc1 {[%clk 0:02:21]}  Rdc8 {[%clk 0:01:21]} 24. f4 {[%clk 0:02:21]}  Nb8 {[%clk 0:01:08]} 25. c5 {[%clk 0:02:13]}  Bxd3+ {[%clk 0:01:07]} 26. Kxd3 {[%clk 0:02:14]}  Na6 {[%clk 0:00:52]} 27. Ba3 {[%clk 0:02:12]}  bxc5 {[%clk 0:00:52]} 28. dxc5 {[%clk 0:02:06]}  Rc6 {[%clk 0:00:45]} 29. Kc4 {[%clk 0:01:55]}  Nxc5 {[%clk 0:00:43]} 30. Kb5 {[%clk 0:01:55]} 1-0


[Site "https://www.chess.com"]

[Event "Titled Tuesday Blitz October 25 Late 2022"]
[White "Paravyan, David"]
[Black "Dilanyan, Grigor"]
[WhiteFideId "4194985"]
[BlackFideId "13303570"]
[WhiteElo "2555"]
[BlackElo "2264"]
[Result "1-0"]
[Round "04"]
[TimeControl "180+1"]
[Date "2022.10.26"]
[WhiteClock "0:01:11"]
[BlackClock "0:00:03"]

1. e4 {[%clk 0:03:00]}  e5 {[%clk 0:02:58]} 2. Nf3 {[%clk 0:03:01]}  Nc6 {[%clk 0:02:58]} 3. Nc3 {[%clk 0:03:01]}  Nf6 {[%clk 0:02:58]} 4. d4 {[%clk 0:03:02]}  Bb4 {[%clk 0:02:58]} 5. Nxe5 {[%clk 0:03:01]}  Qe7 {[%clk 0:02:59]} 6. Qd3 {[%clk 0:02:52]}  Nxe5 {[%clk 0:02:57]} 7. dxe5 {[%clk 0:02:53]}  Qxe5 {[%clk 0:02:58]} 8. Bd2 {[%clk 0:02:51]}  Bxc3 {[%clk 0:02:58]} 9. Bxc3 {[%clk 0:02:52]}  Qxe4+ {[%clk 0:02:59]} 10. Qxe4+ {[%clk 0:02:52]}  Nxe4 {[%clk 0:03:00]} 11. Bxg7 {[%clk 0:02:53]}  Rg8 {[%clk 0:02:59]} 12. Bd4 {[%clk 0:02:54]}  d5 {[%clk 0:02:54]} 13. O-O-O {[%clk 0:02:43]}  c5 {[%clk 0:02:54]} 14. Be3 {[%clk 0:02:43]}  d4 {[%clk 0:02:54]} 15. Bxd4 {[%clk 0:02:43]}  cxd4 {[%clk 0:02:54]} 16. Re1 {[%clk 0:02:44]}  Bf5 {[%clk 0:02:22]} 17. f3 {[%clk 0:02:44]}  O-O-O {[%clk 0:02:18]} 18. fxe4 {[%clk 0:02:45]}  Rde8 {[%clk 0:02:11]} 19. Bd3 {[%clk 0:02:41]}  Be6 {[%clk 0:02:11]} 20. g3 {[%clk 0:02:41]}  Rg5 {[%clk 0:02:07]} 21. Rhf1 {[%clk 0:02:41]}  Rh5 {[%clk 0:02:05]} 22. Re2 {[%clk 0:02:39]}  a6 {[%clk 0:02:02]} 23. Rf4 {[%clk 0:02:39]}  Kc7 {[%clk 0:01:56]} 24. e5 {[%clk 0:02:39]}  Rd8 {[%clk 0:01:56]} 25. b3 {[%clk 0:02:32]}  Rd5 {[%clk 0:01:55]} 26. Bc4 {[%clk 0:02:31]}  Rdxe5 {[%clk 0:01:55]} 27. Rxe5 {[%clk 0:02:31]}  Rxe5 {[%clk 0:01:56]} 28. Rxd4 {[%clk 0:02:26]}  Bxc4 {[%clk 0:01:53]} 29. Rxc4+ {[%clk 0:02:27]}  Kd6 {[%clk 0:01:52]} 30. Kd2 {[%clk 0:02:24]}  h5 {[%clk 0:01:50]} 31. Kd3 {[%clk 0:02:14]}  b5 {[%clk 0:01:46]} 32. Rd4+ {[%clk 0:02:14]}  Kc6 {[%clk 0:01:38]} 33. Rf4 {[%clk 0:02:14]}  Rd5+ {[%clk 0:01:31]} 34. Kc3 {[%clk 0:02:11]}  Rc5+ {[%clk 0:01:19]} 35. Kb2 {[%clk 0:02:11]}  f5 {[%clk 0:01:11]} 36. Rh4 {[%clk 0:02:11]}  f4 {[%clk 0:01:10]} 37. Rxf4 {[%clk 0:02:10]}  Re5 {[%clk 0:01:11]} 38. Kc3 {[%clk 0:02:09]}  a5 {[%clk 0:01:10]} 39. Kd3 {[%clk 0:02:07]}  b4 {[%clk 0:01:10]} 40. Rh4 {[%clk 0:02:02]}  Rd5+ {[%clk 0:01:10]} 41. Rd4 {[%clk 0:02:02]}  Rf5 {[%clk 0:01:10]} 42. Ke3 {[%clk 0:01:57]}  Kb5 {[%clk 0:01:06]} 43. h4 {[%clk 0:01:55]}  Re5+ {[%clk 0:01:06]} 44. Kf3 {[%clk 0:01:49]}  Rf5+ {[%clk 0:01:03]} 45. Ke3 {[%clk 0:01:49]}  Re5+ {[%clk 0:01:03]} 46. Kd3 {[%clk 0:01:50]}  Rf5 {[%clk 0:01:03]} 47. Rf4 {[%clk 0:01:48]}  Rd5+ {[%clk 0:01:03]} 48. Ke3 {[%clk 0:01:49]}  Re5+ {[%clk 0:01:01]} 49. Kd4 {[%clk 0:01:47]}  Rc5 {[%clk 0:01:00]} 50. Rf2 {[%clk 0:01:46]}  Rc3 {[%clk 0:00:56]} 51. a4+ {[%clk 0:01:43]}  Kb6 {[%clk 0:00:48]} 52. Rf6+ {[%clk 0:01:43]}  Kb7 {[%clk 0:00:48]} 53. Rf5 {[%clk 0:01:43]}  Ka6 {[%clk 0:00:40]} 54. Rxh5 {[%clk 0:01:40]}  Rxg3 {[%clk 0:00:39]} 55. Rg5 {[%clk 0:01:39]}  Rh3 {[%clk 0:00:38]} 56. Rg6+ {[%clk 0:01:37]}  Kb7 {[%clk 0:00:38]} 57. Rg4 {[%clk 0:01:22]}  Rc3 {[%clk 0:00:36]} 58. Rg5 {[%clk 0:01:21]}  Kb6 {[%clk 0:00:17]} 59. Rb5+ {[%clk 0:01:21]}  Kc6 {[%clk 0:00:17]} 60. Rxa5 {[%clk 0:01:20]}  Rxc2 {[%clk 0:00:17]} 61. Rb5 {[%clk 0:01:20]}  Rh2 {[%clk 0:00:17]} 62. Rxb4 {[%clk 0:01:19]}  Rxh4+ {[%clk 0:00:16]} 63. Kc3 {[%clk 0:01:20]}  Rh3+ {[%clk 0:00:17]} 64. Kb2 {[%clk 0:01:21]}  Rh2+ {[%clk 0:00:18]} 65. Ka3 {[%clk 0:01:21]}  Rh1 {[%clk 0:00:18]} 66. Rc4+ {[%clk 0:01:22]}  Kb6 {[%clk 0:00:18]} 67. Kb4 {[%clk 0:01:22]}  Rh5 {[%clk 0:00:17]} 68. Rf4 {[%clk 0:01:23]}  Rg5 {[%clk 0:00:16]} 69. Re4 {[%clk 0:01:23]}  Rh5 {[%clk 0:00:15]} 70. Re6+ {[%clk 0:01:23]}  Kb7 {[%clk 0:00:15]} 71. Kc4 {[%clk 0:01:21]}  Rh4+ {[%clk 0:00:15]} 72. Kc5 {[%clk 0:01:16]}  Rh5+ {[%clk 0:00:16]} 73. Kd4 {[%clk 0:01:14]}  Rh4+ {[%clk 0:00:15]} 74. Re4 {[%clk 0:01:14]}  Rh3 {[%clk 0:00:14]} 75. Kc4 {[%clk 0:01:15]}  Kb6 {[%clk 0:00:11]} 76. b4 {[%clk 0:01:14]}  Rh1 {[%clk 0:00:10]} 77. Re6+ {[%clk 0:01:14]}  Kb7 {[%clk 0:00:10]} 78. Re7+ {[%clk 0:01:14]}  Kc6 {[%clk 0:00:10]} 79. b5+ {[%clk 0:01:13]}  Kb6 {[%clk 0:00:11]} 80. Re6+ {[%clk 0:01:14]}  Kb7 {[%clk 0:00:09]} 81. Kb4 {[%clk 0:01:13]}  Rb1+ {[%clk 0:00:06]} 82. Ka5 {[%clk 0:01:13]}  Rd1 {[%clk 0:00:02]} 83. Re7+ {[%clk 0:01:13]}  Kb8 {[%clk 0:00:02]} 84. Ka6 {[%clk 0:01:12]}  Rd6+ {[%clk 0:00:03]} 85. b6 {[%clk 0:01:12]}  Kc8 {[%clk 0:00:03]} 86. Re8+ {[%clk 0:01:10]}  Kd7 {[%clk 0:00:03]} 87. Rh8 {[%clk 0:01:11]}  Rd4 {[%clk 0:00:03]} 88. a5 {[%clk 0:01:11]}  Kc6 {[%clk 0:00:03]} 89. Rc8+ {[%clk 0:01:11]}  Kd7 {[%clk 0:00:03]} 90. Rc1 {[%clk 0:01:12]}  Rd6 {[%clk 0:00:02]} 91. Kb7 {[%clk 0:01:12]}  Rd1 {[%clk 0:00:02]} 92. Rc7+ {[%clk 0:01:12]}  Kd8 {[%clk 0:00:02]} 93. a6 {[%clk 0:01:13]}  Ra1 {[%clk 0:00:02]} 94. a7 {[%clk 0:01:13]}  Rxa7+ {[%clk 0:00:03]} 95. Kxa7 {[%clk 0:01:11]} 1-0


[Site "https://www.chess.com"]